bitfinex/quotes_BTCUSD_20240921
["timestamp","ask_amount","ask_price","bid_price","bid_amount"]
[1726901744812,1.44113614,63063.0,63062.0,0.001652]
[1726901745743,1.42713614,63063.0,63062.0,0.001652]
[1726901746313,1.45513614,63063.0,63062.0,0.001652]
[1726901746548,1.59752474,63063.0,63062.0,0.001652]
[1726901747535,1.27114125,63063.0,63062.0,0.001652]
[1726901748990,1.27111928,63063.0,63062.0,0.001652]
[1726901749413,1.61544248,63063.0,63062.0,0.001652]
[1726901749643,1.28909677,63063.0,63062.0,0.001652]
[1726901750568,1.47305871,63063.0,63062.0,0.001652]
[1726901751917,1.79020171,63063.0,63062.0,0.001652]
[1726901752362,1.47305871,63063.0,63062.0,0.001652]
[1726901752779,1.79020171,63063.0,63062.0,0.001652]
[1726901753123,1.47305871,63063.0,63062.0,0.001652]
[1726901753363,1.79020171,63063.0,63062.0,0.001652]
[1726901753739,1.47305871,63063.0,63062.0,0.001652]
[1726901754376,1.79020171,63063.0,63062.0,0.001652]
[1726901755252,0.475722,63062.0,63061.0,0.00111019]
[1726901755475,1.1982353,63062.0,63061.0,0.00111019]
[1726901755710,1.52234064,63062.0,63061.0,0.00111019]
[1726901756426,1.53634064,63062.0,63061.0,0.00111019]
[1726901756861,1.69653292,63062.0,63061.0,0.00111019]
[1726901758022,1.71053292,63062.0,63061.0,0.00111019]
[1726901758490,1.55034064,63062.0,63061.0,0.00111019]
[1726901759889,1.71053292,63062.0,63061.0,0.00111019]
[1726901761272,1.67218431,63062.0,63061.0,0.00111019]
[1726901762408,1.83237659,63062.0,63061.0,0.00111019]
[1726901762869,1.81837659,63062.0,63061.0,0.00111019]
[1726901763100,1.83237659,63062.0,63061.0,0.00111019]
[1726901764002,1.67218431,63062.0,63061.0,0.00111019]
[1726901764705,1.81837659,63062.0,63061.0,0.00111019]
[1726901764977,1.83237659,63062.0,63061.0,0.00111019]
[1726901765663,1.67218431,63062.0,63061.0,0.00111019]
[1726901766801,1.8325567,63062.0,63061.0,0.00111019]
[1726901767025,1.67218431,63062.0,63061.0,0.00111019]
[1726901768461,1.83258289,63062.0,63061.0,0.00111019]
[1726901768933,1.67218431,63062.0,63061.0,0.00111019]
[1726901776504,1.67172262,63062.0,63061.0,0.00111019]
[1726901776707,1.67254862,63062.0,63061.0,0.00111019]
[1726901781510,1.67317232,63062.0,63061.0,0.00111019]
[1726901791423,1.67375182,63062.0,63061.0,0.00111019]
[1726901793636,1.11355068,63062.0,63061.0,0.00111019]
[1726901795071,1.64585543,63062.0,63061.0,0.00111019]
[1726901795479,1.65985543,63062.0,63061.0,0.00111019]
[1726901796481,1.44039512,63062.0,63061.0,0.00111019]
[1726901797465,1.11355068,63062.0,63061.0,0.00111019]
[1726901800750,1.67381947,63062.0,63061.0,0.00111019]
[1726901801709,1.65981947,63062.0,63061.0,0.00111019]
[1726901802103,1.67381947,63062.0,63061.0,0.00111019]
[1726901802331,1.11355068,63062.0,63061.0,0.00111019]
[1726901802832,1.09955068,63062.0,63061.0,0.00111019]
[1726901803264,1.11355068,63062.0,63061.0,0.00111019]
[1726901805822,1.67075707,63062.0,63061.0,0.00111019]
[1726901808083,1.67072556,63062.0,63061.0,0.00111019]
[1726901813011,1.67262625,63062.0,63061.0,0.00111019]
[1726901813616,1.35547825,63062.0,63061.0,0.00111019]
[1726901815136,1.67262625,63062.0,63061.0,0.00111019]
[1726901815581,1.35547825,63062.0,63061.0,0.00111019]
[1726901815821,1.67262625,63062.0,63061.0,0.00111019]
[1726901816925,1.35547825,63062.0,63061.0,0.00111019]
[1726901817183,1.34852091,63062.0,63061.0,0.00111019]
[1726901818095,1.34862223,63062.0,63061.0,0.00111019]
[1726901821843,1.66577023,63062.0,63061.0,0.00111019]
[1726901822362,1.22677856,63062.0,63061.0,0.00111019]
[1726901822818,1.33958371,63062.0,63061.0,0.00111019]
[1726901823046,1.66577023,63062.0,63061.0,0.00111019]
[1726901824942,1.34862223,63062.0,63061.0,0.00111019]
[1726901825402,1.66577023,63062.0,63061.0,0.00111019]
[1726901829782,1.34862223,63062.0,63061.0,0.00111019]
[1726901830507,1.66577023,63062.0,63061.0,0.00111019]
[1726901831193,1.66629566,63062.0,63061.0,0.00111019]
[1726901832620,1.22730399,63062.0,63061.0,0.00111019]
[1726901832866,1.02265464,63062.0,63061.0,0.00111019]
[1726901833100,1.34914766,63062.0,63061.0,0.00111019]
[1726901833321,1.66629566,63062.0,63061.0,0.00111019]
[1726901833544,1.34914766,63062.0,63061.0,0.00111019]
[1726901834009,1.66629566,63062.0,63061.0,0.00111019]
[1726901835834,1.66862146,63062.0,63061.0,0.00111019]
[1726901841835,1.66862146,63062.0,63061.0,0.09601019]
[1726901841836,0.91248179,63062.0,63061.0,0.09601019]
[1726901842058,0.86707177,63062.0,63061.0,0.09601019]
[1726901842281,1.35147346,63062.0,63061.0,0.09601019]
[1726901843201,0.91248179,63062.0,63061.0,0.09601019]
[1726901843422,1.03432546,63062.0,63061.0,0.09601019]
[1726901844059,0.70647572,63062.0,63061.0,0.09601019]
[1726901844264,1.03432546,63062.0,63061.0,0.09601019]
[1726901845419,1.03473717,63062.0,63061.0,0.09601019]
[1726901845649,1.35188517,63062.0,63061.0,0.09601019]
[1726901847404,1.02379527,63062.0,63061.0,0.09601019]
[1726901847612,1.35188517,63062.0,63061.0,0.09601019]
[1726901848041,1.51240807,63062.0,63061.0,0.09601019]
[1726901848251,1.51238995,63062.0,63061.0,0.09601019]
[1726901848872,1.35188517,63062.0,63061.0,0.09601019]
[1726901849836,1.5123879,63062.0,63061.0,0.09601019]
[1726901850041,1.35188517,63062.0,63061.0,0.09601019]
[1726901850266,0.78944534,63062.0,63061.0,0.09601019]
[1726901850507,1.02332913,63062.0,63061.0,0.09601019]
[1726901850748,1.18383438,63062.0,63061.0,0.09601019]
[1726901851192,1.51127169,63062.0,63061.0,0.09601019]
[1726901852357,1.35076644,63062.0,63061.0,0.09601019]
[1726901852522,1.51127169,63062.0,63061.0,0.09601019]
[1726901855392,1.51363672,63062.0,63061.0,0.09601019]
[1726901858176,1.51363672,63062.0,63061.0,0.00111019]
[1726901858607,0.78944534,63062.0,63061.0,0.00111019]
[1726901860010,1.0253193,63062.0,63061.0,0.00111019]
[1726901860616,1.51603243,63062.0,63061.0,0.00111019]
[1726901861389,1.83318043,63062.0,63061.0,0.00111019]
[1726901862029,1.11966889,63062.0,63061.0,0.00111019]
[1726901862230,0.78944534,63062.0,63061.0,0.00111019]
[1726901867104,0.78944534,63062.0,63061.0,0.09191019]
[1726901870562,1.35565696,63062.0,63061.0,0.09191019]
[1726901873440,0.91666529,63062.0,63061.0,0.09191019]
[1726901873675,1.03850896,63062.0,63061.0,0.09191019]
[1726901874146,0.75809129,63062.0,63061.0,0.09191019]
[1726901874434,0.75809129,63062.0,63061.0,0.64943919]
[1726901875094,0.74409129,63062.0,63061.0,0.64943919]
[1726901875759,0.66849767,63062.0,63061.0,0.64943919]
[1726901876000,0.65449767,63062.0,63061.0,0.64943919]
[1726901876209,0.66849767,63062.0,63061.0,0.64943919]
[1726901876435,0.53564485,63062.0,63061.0,0.64943919]
[1726901876662,0.65449767,63062.0,63061.0,0.64943919]
[1726901876880,0.53564485,63062.0,63061.0,0.64943919]
[1726901877312,0.63069199,63062.0,63061.0,0.64943919]
[1726901877560,0.63069256,63062.0,63061.0,0.64943919]
[1726901877785,0.54964485,63062.0,63061.0,0.64943919]
[1726901878474,0.64467892,63062.0,63061.0,0.64943919]
[1726901879344,0.644672,63062.0,63061.0,0.64943919]
[1726901879823,0.65203623,63062.0,63061.0,0.64943919]
[1726901880254,0.55700908,63062.0,63061.0,0.64943919]
[1726901881198,0.6758619,63062.0,63061.0,0.64943919]
[1726901881416,0.55700908,63062.0,63061.0,0.64943919]
[1726901881649,0.55865397,63062.0,63061.0,0.64943919]
[1726901883930,0.67743437,63062.0,63061.0,0.64943919]
[1726901886169,0.67743437,63062.0,63061.0,0.00111019]
[1726901886382,0.55865397,63062.0,63061.0,0.15968619]
[1726901888718,0.55865397,63062.0,63061.0,0.00111019]
[1726901896156,0.55828887,63062.0,63061.0,0.00111019]
[1726901900967,0.558272,63062.0,63061.0,0.00111019]
[1726901905424,0.70084063,63062.0,63061.0,0.00111019]
[1726901905860,0.70090561,63062.0,63061.0,0.00111019]
[1726901910836,0.70103039,63062.0,63061.0,0.00111019]
[1726901917489,0.55842979,63062.0,63061.0,0.00111019]
[1726901919047,0.7010741,63062.0,63061.0,0.00111019]
[1726901919337,0.55842979,63062.0,63061.0,0.00111019]
[1726901920055,0.53842979,63062.0,63061.0,0.00111019]
[1726901920491,0.68109084,63062.0,63061.0,0.00111019]
[1726901920675,0.53846245,63062.0,63061.0,0.00111019]
[1726901924814,0.53850337,63062.0,63061.0,0.00111019]
[1726901937215,0.53864581,63062.0,63061.0,0.00111019]
[1726901938802,0.53128158,63062.0,63061.0,0.00111019]
[1726901939270,1.00700358,63062.0,63061.0,0.00111019]
[1726901939492,1.16763721,63062.0,63061.0,0.00111019]
[1726901939742,1.00700358,63062.0,63061.0,0.00111019]
[1726901941071,1.16739086,63062.0,63061.0,0.00111019]
[1726901941312,1.16739296,63062.0,63061.0,0.00111019]
[1726901941523,1.16739013,63062.0,63061.0,0.00111019]
[1726901941742,1.00677554,63062.0,63061.0,0.00111019]
[1726901942181,0.68962754,63062.0,63061.0,0.00111019]
[1726901945405,0.53105354,63062.0,63061.0,0.00111019]
[1726901953121,0.53105354,63062.0,63061.0,0.47683919]
[1726901953577,0.67381634,63062.0,63061.0,0.47683919]
[1726901953793,0.53105354,63062.0,63061.0,0.47683919]
[1726901955302,0.53144619,63062.0,63061.0,0.47683919]
[1726901956925,0.67419495,63062.0,63061.0,0.47683919]
[1726901957128,0.53144619,63062.0,63061.0,0.47683919]
[1726901959319,0.67418068,63062.0,63061.0,0.47683919]
[1726901959729,0.67417813,63062.0,63061.0,0.47683919]
[1726901960144,0.67421974,63062.0,63061.0,0.47683919]
[1726901972639,0.53148858,63062.0,63061.0,0.47683919]
[1726901973157,0.53148858,63062.0,63061.0,0.79399219]
[1726901973158,0.40964491,63062.0,63061.0,0.79399219]
[1726901973359,0.53148858,63062.0,63061.0,0.79399219]
[1726901973581,0.67419691,63062.0,63061.0,0.79399219]
[1726901974989,0.67397179,63062.0,63061.0,0.79399219]
[1726901976382,0.53126471,63062.0,63061.0,0.79399219]
[1726901976610,0.67397179,63062.0,63061.0,0.79399219]
[1726901979624,0.29372334,63062.0,63061.0,0.79399219]
[1726901979862,0.67397547,63062.0,63061.0,0.79399219]
[1726901983393,0.53127414,63062.0,63061.0,0.79399219]
[1726901983843,0.67397547,63062.0,63061.0,0.79399219]
[1726901984511,0.29372334,63062.0,63061.0,0.79399219]
[1726901984734,0.53126413,63062.0,63061.0,0.79399219]
[1726901985386,0.67395856,63062.0,63061.0,0.79399219]
[1726901986769,0.67396728,63062.0,63061.0,0.79399219]
[1726901987231,0.53126213,63062.0,63061.0,0.79399219]
[1726901989280,0.6739832,63062.0,63061.0,0.79399219]
[1726901989786,0.6739832,63062.0,63061.0,0.47683919]
[1726901990004,0.53126213,63062.0,63061.0,0.47683919]
[1726901994468,0.53124504,63062.0,63061.0,0.47683919]
[1726901995806,0.53124504,63062.0,63061.0,0.00111019]
[1726901996507,0.53124504,63062.0,63061.0,0.15968619]
[1726901996717,0.53124504,63062.0,63061.0,0.00111019]
[1726901997200,0.53124504,63062.0,63061.0,0.15968619]
[1726901998068,0.53124504,63062.0,63061.0,0.00111019]
[1726901998503,0.53124504,63062.0,63061.0,0.15968619]
[1726901999333,0.53132559,63062.0,63061.0,0.00111019]
[1726901999736,0.53132559,63062.0,63061.0,0.15968619]
[1726902003320,0.53132559,63062.0,63061.0,0.00111019]
[1726902003530,0.53132559,63062.0,63061.0,0.15968619]
[1726902003946,0.53132559,63062.0,63061.0,0.00111019]
[1726902005494,0.53132559,63062.0,63061.0,0.15968619]
[1726902006566,0.53132559,63062.0,63061.0,0.00111019]
[1726902006794,0.53132559,63062.0,63061.0,0.15968619]
[1726902007426,0.53132559,63062.0,63061.0,0.00111019]
[1726902007640,0.68979068,63062.0,63061.0,0.00111019]
[1726902009239,0.53121668,63062.0,63061.0,0.00111019]
[1726902009461,0.68979068,63062.0,63061.0,0.00111019]
[1726902009653,0.53121668,63062.0,63061.0,0.00111019]
[1726902009903,0.68979068,63062.0,63061.0,0.00111019]
[1726902010787,0.53121668,63062.0,63061.0,0.00111019]
[1726902011661,0.40937301,63062.0,63061.0,0.00111019]
[1726902011873,0.53121668,63062.0,63061.0,0.00111019]
[1726902013054,0.40937301,63062.0,63061.0,0.79399219]
[1726902013312,0.67393703,63062.0,63061.0,0.88879219]
[1726902013560,0.40937301,63062.0,63061.0,0.88879219]
[1726902013808,0.40937301,63062.0,63061.0,0.96959219]
[1726902014317,0.40937301,63062.0,63061.0,0.97159219]
[1726902014786,0.40937301,63062.0,63061.0,0.96959219]
[1726902017203,0.40937301,63062.0,63061.0,0.97159219]
[1726902017437,0.52827635,63062.0,63061.0,0.97159219]
[1726902017913,0.52827635,63062.0,63061.0,1.28874519]
[1726902018158,0.028826,63062.0,63061.0,1.3060706]
[1726902018890,0.014826,63062.0,63061.0,1.3060706]
[1726902019140,0.014826,63062.0,63061.0,1.30608173]
[1726902019372,0.028826,63062.0,63061.0,1.32341797]
[1726902019615,0.028826,63062.0,63061.0,1.30608143]
[1726902019847,0.000826,63062.0,63061.0,1.30608143]
[1726902020312,0.014826,63062.0,63061.0,1.30608143]
[1726902021284,0.028826,63062.0,63061.0,1.30608143]
[1726902021516,0.014826,63062.0,63061.0,1.306037]
[1726902021751,0.014826,63062.0,63061.0,1.304037]
[1726902021977,0.028826,63062.0,63061.0,1.304037]
[1726902022231,0.028826,63062.0,63061.0,1.28674519]
[1726902025522,0.028826,63062.0,63061.0,1.30407892]
[1726902027491,0.028826,63062.0,63061.0,1.30607892]
[1726902030051,0.028826,63062.0,63061.0,1.28874519]
[1726902030290,0.028826,63062.0,63061.0,1.30607327]
[1726902032844,0.028826,63062.0,63061.0,1.30607405]
[1726902043150,0.028826,63062.0,63061.0,1.28874519]
[1726902043385,0.028826,63062.0,63061.0,1.30608957]
[1726902050023,0.028826,63062.0,63061.0,1.30612393]
[1726902053471,0.028826,63062.0,63061.0,1.28874519]
[1726902053697,0.028826,63062.0,63061.0,1.30613703]
[1726902062456,0.028826,63062.0,63061.0,1.28874519]
[1726902062682,0.028826,63062.0,63061.0,1.30614731]
[1726902066418,0.028826,63062.0,63061.0,1.62330031]
[1726902073948,0.028826,63062.0,63061.0,1.65126414]
[1726902081822,0.000826,63062.0,63061.0,1.65126414]
[1726902082271,0.014826,63062.0,63061.0,1.65126414]
[1726902082785,0.028826,63062.0,63061.0,1.6515217]
[1726902083005,0.014826,63062.0,63061.0,1.6515217]
[1726902083435,0.028826,63062.0,63061.0,1.6515217]
[1726902083668,0.041826,63062.0,63061.0,1.6515217]
[1726902086146,0.041826,63062.0,63061.0,1.65145149]
[1726902093431,0.041826,63062.0,63061.0,1.60589819]
[1726902093651,0.041826,63062.0,63061.0,1.65151733]
[1726902096950,0.041826,63062.0,63061.0,1.60589819]
[1726902097192,0.041826,63062.0,63061.0,1.65151259]
[1726902100840,0.041826,63062.0,63061.0,1.60589819]
[1726902101076,0.041826,63062.0,63061.0,1.65148412]
[1726902103670,0.041826,63062.0,63061.0,1.63397463]
[1726902104534,0.041826,63062.0,63061.0,1.63397141]
[1726902107337,0.041826,63062.0,63061.0,1.63396341]
[1726902107564,0.041826,63062.0,63061.0,1.31681041]
[1726902108614,0.041826,63062.0,63061.0,1.31677718]
[1726902108822,0.041826,63062.0,63061.0,1.23597718]
[1726902112326,0.041826,63062.0,63061.0,1.23600409]
[1726902119350,0.041826,63062.0,63061.0,1.23600276]
[1726902121203,0.041826,63062.0,63061.0,1.23600249]
[1726902121548,0.041826,63062.0,63061.0,1.20794519]
[1726902121746,0.041826,63062.0,63061.0,1.23600217]
[1726902125031,0.041826,63062.0,63061.0,1.2360025]
[1726902128355,0.041826,63062.0,63061.0,1.23599783]
[1726902131762,0.041826,63062.0,63061.0,1.20794519]
[1726902131984,0.041826,63062.0,63061.0,1.23600636]
[1726902133386,0.041826,63062.0,63061.0,1.25291393]
[1726902135980,0.041826,63062.0,63061.0,1.23600636]
[1726902136193,0.041826,63062.0,63061.0,1.22485649]
[1726902136434,0.041826,63062.0,63061.0,1.25291684]
[1726902138784,0.041826,63062.0,63061.0,1.41991684]
[1726902139007,0.041826,63062.0,63061.0,1.25291684]
[1726902139692,0.041826,63062.0,63061.0,1.23600925]
[1726902139909,0.041826,63062.0,63061.0,1.2529218]
[1726902143305,0.041826,63062.0,63061.0,1.5700748]
[1726902143518,0.041826,63062.0,63061.0,1.22485774]
[1726902143728,0.041826,63062.0,63061.0,1.69191928]
[1726902143963,0.041826,63062.0,63061.0,1.37476628]
[1726902147070,0.041826,63062.0,63061.0,1.34670482]
[1726902147281,0.041826,63062.0,63061.0,1.25293089]
[1726902147698,0.041826,63062.0,63061.0,1.57008389]
[1726902147981,0.041826,63062.0,63061.0,1.25293089]
[1726902151162,0.041826,63062.0,63061.0,1.2360111]
[1726902151382,0.041826,63062.0,63061.0,1.25292408]
[1726902154193,0.041826,63062.0,63061.0,1.57007708]
[1726902154414,0.041826,63062.0,63061.0,1.25292408]
[1726902154636,0.041826,63062.0,63061.0,1.5531641]
[1726902154872,0.041826,63062.0,63061.0,1.57010335]
[1726902156691,0.041826,63062.0,63061.0,1.25295035]
[1726902157367,0.041826,63062.0,63061.0,1.57010335]
[1726902157660,0.041826,63062.0,63061.0,1.25295035]
[1726902158112,0.041826,63062.0,63061.0,1.55326015]
[1726902158340,0.041826,63062.0,63061.0,1.57026263]
[1726902159257,0.041826,63062.0,63061.0,1.6921063]
[1726902160417,0.013826,63062.0,63061.0,1.6921063]
[1726902160653,0.027826,63062.0,63061.0,1.6921063]
[1726902160843,0.000826,63062.0,63061.0,1.6921063]
[1726902161123,0.013826,63062.0,63061.0,1.6921063]
[1726902161418,0.027826,63062.0,63061.0,1.6921063]
[1726902161656,0.014826,63062.0,63061.0,1.64694186]
[1726902161884,0.014826,63062.0,63061.0,1.69208633]
[1726902161885,0.022826,63062.0,63061.0,1.69208633]
[1726902162581,0.008826,63062.0,63061.0,1.73960676]
[1726902162816,0.008826,63062.0,63061.0,1.81910676]
[1726902163070,0.022826,63062.0,63061.0,2.13625976]
[1726902163508,0.022826,63062.0,63061.0,1.81910676]
[1726902163723,0.022826,63062.0,63061.0,2.15383519]
[1726902163998,0.022826,63062.0,63061.0,2.10806881]
[1726902164227,0.022826,63062.0,63061.0,2.15376503]
[1726902164440,0.022826,63062.0,63061.0,2.1062446]
[1726902164661,0.022826,63062.0,63061.0,1.7890916]
[1726902164880,0.022826,63062.0,63061.0,1.87620763]
[1726902165094,0.022826,63062.0,63061.0,1.7890916]
[1726902165416,0.022826,63062.0,63061.0,1.83656891]
[1726902166016,0.022826,63062.0,63061.0,2.07514527]
[1726902166232,0.022826,63062.0,63061.0,2.48733913]
[1726902166449,0.022826,63062.0,63061.0,2.47931522]
[1726902166902,0.014826,63062.0,63061.0,2.39229827]
[1726902167113,0.000826,63062.0,63061.0,2.39229827]
[1726902167337,0.008826,63062.0,63061.0,2.51093939]
[1726902167549,0.020826,63062.0,63061.0,2.51093939]
[1726902167784,0.012826,63062.0,63061.0,2.51093939]
[1726902168013,0.012826,63062.0,63061.0,2.39229827]
[1726902168669,0.012826,63062.0,63061.0,2.34657418]
[1726902168891,0.012826,63062.0,63061.0,2.39223782]
[1726902169361,0.000826,63062.0,63061.0,2.48708404]
[1726902169577,0.008826,63062.0,63061.0,2.48708404]
[1726902170024,0.000826,63062.0,63061.0,2.48708404]
[1726902170450,0.007826,63062.0,63061.0,2.48708404]
[1726902171392,0.007826,63062.0,63061.0,2.39223782]
[1726902172302,0.007826,63062.0,63061.0,2.32964853]
[1726902172531,0.007826,63062.0,63061.0,2.4632932]
[1726902173655,0.007826,63062.0,63061.0,2.46328848]
[1726902175451,0.007826,63062.0,63061.0,2.3921856]
[1726902175943,0.007826,63062.0,63061.0,2.37522084]
[1726902176185,0.007826,63062.0,63061.0,2.39209357]
[1726902179385,0.007826,63062.0,63061.0,2.43947876]
[1726902181980,0.007826,63062.0,63061.0,2.43967491]
[1726902182209,0.007826,63062.0,63061.0,2.36017491]
[1726902185544,0.007826,63062.0,63061.0,2.29753372]
[1726902185782,0.007826,63062.0,63061.0,2.36019515]
[1726902186927,0.007826,63062.0,63061.0,2.36019583]
[1726902189112,0.007826,63062.0,63061.0,2.31448609]
[1726902189336,0.007826,63062.0,63061.0,1.99574]
[1726902189553,0.007826,63062.0,63061.0,2.01272461]
[1726902189774,0.007826,63062.0,63061.0,1.59302956]
[1726902189998,0.007826,63062.0,63061.0,1.60884805]
[1726902190200,0.007826,63062.0,63061.0,1.62466676]
[1726902190616,0.007826,63062.0,63061.0,1.56372336]
[1726902191030,0.007826,63062.0,63061.0,1.59189405]
[1726902191511,0.007826,63062.0,63061.0,1.58989405]
[1726902191708,0.007826,63062.0,63061.0,1.59189405]
[1726902191931,0.007826,63062.0,63061.0,1.58989405]
[1726902192160,0.007826,63062.0,63061.0,1.59189405]
[1726902192385,0.007826,63062.0,63061.0,1.60771276]
[1726902192636,0.007826,63062.0,63061.0,1.58989405]
[1726902192894,0.007826,63062.0,63061.0,1.27474105]
[1726902193575,0.007826,63062.0,63061.0,1.17474105]
[1726902193791,0.100326,63062.0,63061.0,1.17474105]
[1726902194058,0.100326,63062.0,63061.0,1.17274105]
[1726902194707,0.093326,63062.0,63061.0,1.17274105]
[1726902194940,0.107326,63062.0,63061.0,1.15692256]
[1726902195168,0.114326,63062.0,63061.0,1.15692256]
[1726902195456,0.10814372,63062.0,63061.0,1.15692256]
[1726902195689,0.107326,63062.0,63061.0,1.15892256]
[1726902195916,0.107326,63062.0,63061.0,1.11314519]
[1726902196141,0.12614372,63062.0,63061.0,1.15862772]
[1726902199303,0.12614372,63062.0,63061.0,1.13063847]
[1726902199901,0.12607829,63062.0,63061.0,1.13063847]
[1726902200365,0.118326,63062.0,63061.0,1.13063847]
[1726902200776,0.118326,63062.0,63061.0,1.15862772]
[1726902200991,0.118326,63062.0,63061.0,1.13063847]
[1726902203487,0.118326,63062.0,63061.0,1.13069927]
[1726902206943,0.025826,63062.0,63061.0,1.13069927]
[1726902209108,0.03357829,63062.0,63061.0,1.12869927]
[1726902209934,0.03357829,63062.0,63061.0,1.11114519]
[1726902210170,0.03357829,63062.0,63061.0,1.12868839]
[1726902211190,0.03357829,63062.0,63061.0,1.13068839]
[1726902213589,0.03357829,63062.0,63061.0,1.13069575]
[1726902216320,0.03357829,63062.0,63061.0,1.15877665]
[1726902216543,0.03357829,63062.0,63061.0,1.13069575]
[1726902216749,0.03357829,63062.0,63061.0,1.15877665]
[1726902218597,0.31847563,63062.0,63061.0,0.83962365]
[1726902218811,0.41227563,63062.0,63061.0,0.83962365]
[1726902219022,0.41227563,63062.0,63061.0,0.81154275]
[1726902220101,0.41227563,63062.0,63061.0,0.79399219]
[1726902231780,0.40452334,63062.0,63061.0,0.79399219]
[1726902238377,0.4520022,63062.0,63061.0,0.79399219]
[1726902240061,0.45202631,63062.0,63061.0,0.79399219]
[1726902241442,0.35822631,63062.0,63061.0,0.79399219]
[1726902243121,0.35822631,63062.0,63061.0,0.47683919]
[1726902243258,0.35822598,63062.0,63061.0,0.47683919]
[1726902243914,0.31072334,63062.0,63061.0,0.47683919]
[1726902244618,0.35822625,63062.0,63061.0,0.47683919]
[1726902248170,0.35822881,63062.0,63061.0,0.47683919]
[1726902248662,0.31072334,63062.0,63061.0,0.47683919]
[1726902249138,0.31072334,63062.0,63061.0,0.79399219]
[1726902249368,0.31072334,63062.0,63061.0,0.81163799]
[1726902249590,0.18887967,63062.0,63061.0,0.81163799]
[1726902249810,0.35823193,63062.0,63061.0,0.81163799]
[1726902250899,0.35823193,63062.0,63061.0,0.81168724]
[1726902252787,0.35823899,63062.0,63061.0,0.81168724]
[1726902253017,0.35823894,63062.0,63061.0,0.81168724]
[1726902254172,0.31072334,63062.0,63061.0,0.81168724]
[1726902254437,0.35824197,63062.0,63061.0,0.79399219]
[1726902254643,0.31072334,63062.0,63061.0,0.8116611]
[1726902256457,0.38199675,63062.0,63061.0,0.8116611]
[1726902256900,0.31072334,63062.0,63061.0,0.8116611]
[1726902257114,0.38199675,63062.0,63061.0,0.8116611]
[1726902257354,0.31072334,63062.0,63061.0,0.8116611]
[1726902257560,0.18887967,63062.0,63061.0,0.8116611]
[1726902257785,0.23641257,63062.0,63061.0,0.8116611]
[1726902258009,0.23641257,63062.0,63061.0,0.81164259]
[1726902258221,0.18887967,63062.0,63061.0,0.81164259]
[1726902258435,0.23641257,63062.0,63061.0,0.81164259]
[1726902259802,0.23641257,63062.0,63061.0,0.81364259]
[1726902260016,0.18887967,63062.0,63061.0,1.13079559]
[1726902260261,0.18887967,63062.0,63061.0,0.81364259]
[1726902261106,0.23642831,63062.0,63061.0,0.81164259]
[1726902261520,0.23642831,63062.0,63061.0,0.79399219]
[1726902261729,0.18887967,63062.0,63061.0,0.81162991]
[1726902262439,0.26015308,63062.0,63061.0,0.81162991]
[1726902262657,0.18887967,63062.0,63061.0,0.81162991]
[1726902262876,0.26022294,63062.0,63061.0,0.81162991]
[1726902263542,0.26022294,63062.0,63061.0,1.12878291]
[1726902264228,0.52256955,63062.0,63061.0,1.12878291]
[1726902264431,0.52258951,63062.0,63061.0,1.12878291]
[1726902265481,0.42744519,63062.0,63061.0,1.12878291]
[1726902265871,0.42744519,63062.0,63061.0,0.81162991]
[1726902266312,0.42744519,63062.0,63061.0,1.12878291]
[1726902267582,0.42744519,63062.0,63061.0,0.81162991]
[1726902268631,0.42744519,63062.0,63061.0,0.79399219]
[1726902268854,0.42744519,63062.0,63061.0,0.811671]
[1726902272523,0.42740734,63062.0,63061.0,0.811671]
[1726902275321,0.42740734,63062.0,63061.0,1.128824]
[1726902277295,0.42740734,63062.0,63061.0,0.811671]
[1726902277496,0.42736907,63062.0,63061.0,0.811671]
[1726902277730,0.42736907,63062.0,63061.0,1.128824]
[1726902279219,0.42736907,63062.0,63061.0,1.11114519]
[1726902279413,0.42736907,63062.0,63061.0,1.12886605]
[1726902279886,0.42736907,63062.0,63061.0,0.81171305]
[1726902280324,0.42736907,63062.0,63061.0,1.12886605]
[1726902280553,0.18887967,63062.0,63061.0,1.14371688]
[1726902280775,0.26021277,63062.0,63061.0,1.14371688]
[1726902281009,0.26021277,63062.0,63061.0,1.17215222]
[1726902281454,0.26021277,63062.0,63061.0,1.17220267]
[1726902284487,0.26021277,63062.0,63061.0,1.12891698]
[1726902284709,0.26021277,63062.0,63061.0,1.14377571]
[1726902285584,0.26021277,63062.0,63061.0,1.12891698]
[1726902286094,0.26021277,63062.0,63061.0,1.11114519]
[1726902286321,0.26021277,63062.0,63061.0,1.12888916]
[1726902287256,0.26020594,63062.0,63061.0,1.12888916]
[1726902287445,0.26020594,63062.0,63061.0,1.22138916]
[1726902287662,0.2602061,63062.0,63061.0,1.22138916]
[1726902289617,0.2602061,63062.0,63061.0,1.22139972]
[1726902292175,0.26020666,63062.0,63061.0,1.22139972]
[1726902292994,0.26020666,63062.0,63061.0,1.20364519]
[1726902293238,0.26020666,63062.0,63061.0,1.22139543]
[1726902294217,0.26020666,63062.0,63061.0,1.12889543]
[1726902296742,0.26020666,63062.0,63061.0,1.13089543]
[1726902296960,0.18887967,63062.0,63061.0,1.13089543]
[1726902297163,0.42711942,63062.0,63061.0,1.13089543]
[1726902297387,0.42707578,63062.0,63061.0,1.13089543]
[1726902297818,0.52219194,63062.0,63061.0,1.13089543]
[1726902298045,0.18887967,63062.0,63061.0,1.13089543]
[1726902298698,0.42713609,63062.0,63061.0,1.13089543]
[1726902298914,0.52225225,63062.0,63061.0,1.13089543]
[1726902299545,0.18887967,63062.0,63061.0,1.12889543]
[1726902300194,0.4271692,63062.0,63061.0,1.12889543]
[1726902300642,0.42718059,63062.0,63061.0,1.12889543]
[1726902301108,0.42717515,63062.0,63061.0,1.12889543]
[1726902301334,0.42717515,63062.0,63061.0,0.81172406]
[1726902301559,0.52230131,63062.0,63061.0,0.81172435]
[1726902301781,0.52230131,63062.0,63061.0,1.12887735]
[1726902302481,0.52230131,63062.0,63061.0,0.81172435]
[1726902303149,0.52230131,63062.0,63061.0,1.12887735]
[1726902303614,0.52230131,63062.0,63061.0,1.13087735]
[1726902304531,0.52230131,63062.0,63061.0,0.00111019]
[1726902304532,0.75664915,63062.0,63061.0,0.00111019]
[1726902304742,1.07379715,63062.0,63061.0,0.00111019]
[1726902304964,1.40741083,63062.0,63061.0,0.00111019]
[1726902305158,1.42510849,63062.0,63061.0,0.00111019]
[1726902305356,1.52651642,63062.0,63061.0,0.00111019]
[1726902305558,1.68689617,63062.0,63061.0,0.00111019]
[1726902305757,1.51251642,63062.0,63061.0,0.00111019]
[1726902305932,1.52651642,63062.0,63061.0,0.00111019]
[1726902306332,1.51251642,63062.0,63061.0,0.00111019]
[1726902306529,1.35239156,63062.0,63061.0,0.00111019]
[1726902306760,1.67582653,63062.0,63061.0,0.00111019]
[1726902307174,0.158596,63053.0,63052.0,0.0036793]
[1726902307427,0.87413983,63053.0,63052.0,0.0036793]
[1726902307670,0.97052479,63053.0,63052.0,0.0036793]